Workbook

Sheet Лист1
H1: Приложение к постановлению Администрации Североуральского городского округа от 25.03.2019 № 321
H2: Приложение № 2 к муниципальной программе Североуральского городского округа «Развитие жилищно-коммунального хозяйства и транспортного обслуживания населения, повышение энергетической эффективности и охрана окружающей среды в Североуральском городском округе» 2014-2021 годы
A3: План мероприятий
A4: по выполнению муниципальной программы Североуральского городского округа
A5: «Развитие жилищно-коммунального хозяйства и транспортного обслуживания населения,
A6: повышение энергетической эффективности и охрана окружающей среды в Североуральском городском округе» 2014 -2021 годы
A9: № строки | B9: Наименование мероприятия/ Источники расходов на финансирование | C9: Объем расходов на выполнение мероприятия за счет всех источников ресурсного обеспечения, тыс. руб. | L9: Номер строки целевых показателей, на достижение которых направлены мероприятия
C10: Всего | D10: 2014 год | E10: 2015 год | F10: 2016 год | G10: 2017 год | H10: 2018 год | I10: 2019 год | J10: 2020 год | K10: 2021 год
B11: 1 | C11: 2 | D11: 3 | E11: 4 | F11: 5 | G11: 6 | H11: 7 | I11: 8 | J11: 9 | K11: 10 | L11: 11
A12: 1 | B12: ВСЕГО по муниципальной программе, в том числе: | C12: =SUM(C13+C16+C17) -> 1,310,980.80220 | D12: =SUM(D13+D16+D17) -> 283,826.90000 | E12: 348,239.16000 | F12: 216,622.58758 | G12: 122,867.75616 | H12: 94,174.44440 | I12: 113,872.05406 | J12: 65,498.60000 | K12: 65,879.30000 | L12: Х
A13: =SUM(A12+1) -> 2 | B13: местный бюджет, в т.ч.: | C13: =SUM(D13:K13) -> 768,110.29357 | D13: =SUM(D14:D15) -> 92,792.80000 | E13: 126,635.26000 | F13: 117,147.57339 | G13: 96,239.06172 | H13: 92,906.14440 | I13: 112,913.35406 | J13: 64,544.20000 | K13: 64,931.90000
A14: =SUM(A13+1) -> 3 | B14: - местный бюджет | C14: =SUM(D14:K14) -> 767,915.02797 | D14: =SUM(D19+D24) -> 92,792.80000 | E14: 126,635.26000 | F14: 117,147.57339 | G14: 96,043.79612 | H14: 92,906.14440 | I14: 112,913.35406 | J14: 64,544.20000 | K14: 64,931.90000
A15: 4 | B15: - средства заинтересованных лиц | C15: =SUM(D15:K15) -> 195.26560 | D15: =SUM(D25) -> 0.00000 | E15: 0.00000 | F15: 0.00000 | G15: 195.26560 | H15: 0.00000 | I15: 0.00000 | J15: 0.00000 | K15: 0.00000
A16: 5 | B16: областной бюджет | C16: =SUM(D16:K16) -> 339,782.34811 | D16: =SUM(D20+D26) -> 109,216.10000 | E16: 135,104.30000 | F16: 81,477.35126 | G16: 9,855.79685 | H16: 1,268.30000 | I16: 958.70000 | J16: 954.40000 | K16: 947.40000
A17: 6 | B17: федеральный бюджет | C17: =SUM(D17:K17) -> 203,088.16052 | D17: =SUM(D27+D21) -> 81,818.00000 | E17: 86,499.60000 | F17: 17,997.66293 | G17: 16,772.89759 | H17: 0.00000 | I17: 0.00000 | J17: 0.00000 | K17: 0.00000
A18: 7 | B18: Капитальные вложения | C18: =SUM(C19:C21) -> 682,454.11255 | D18: =SUM(D19:D21) -> 232,761.90000 | E18: =SUM(E19:E21) -> 271,669.00000 | F18: 133,207.88470 | G18: 16,137.35632 | H18: 0.00000 | I18: 28,677.97153 | J18: 0.00000 | K18: 0.00000 | L18: Х
A19: 8 | B19: местный бюджет | C19: =SUM(D19:K19) -> 165,849.72877 | D19: =D35+D131+D203+D223+D254+D289+D358+D380 -> 44,727.80000 | E19: =E35+E131+E203+E223+E254+E289+E358+E380 -> 50,411.30000 | F19: =F35+F131+F203+F223+F254+F289+F358+F380 -> 34,707.97051 | G19: =G35+G131+G203+G223+G254+G289+G358+G380+G417 -> 7,324.68673 | H19: =H35+H131+H203+H223+H254+H289+H358+H380 -> 0.00000 | I19: =I35+I131+I203+I223+I254+I289+I358+I380 -> 28,677.97153 | J19: =J35+J131+J203+J223+J254+J289+J358+J380 -> 0.00000 | K19: =K35+K131+K203+K223+K254+K289+K358+K380 -> 0.00000
A20: 9 | B20: областной бюджет | C20: =SUM(D20:K20) -> 329,148.11326 | D20: =D132+D224+D36 -> 106,216.10000 | E20: =E132+E224+E36 -> 134,758.10000 | F20: =F132+F224 -> 80,502.25126 | G20: 7,671.66200 | H20: 0.00000 | I20: 0.00000 | J20: 0.00000 | K20: 0.00000
A21: 10 | B21: федеральный бюджет | C21: =SUM(D21:K21) -> 187,456.27052 | D21: =D225 -> 81,818.00000 | E21: =E225 -> 86,499.60000 | F21: 17,997.66293 | G21: 1,141.00759 | H21: 0.00000 | I21: 0.00000 | J21: 0.00000 | K21: 0.00000
A22: 11 | B22: Прочие нужды | C22: =SUM(C27+C26+C23) -> 628,526.68965 | D22: =SUM(D23:D26) -> 99,130.00000 | E22: =SUM(E23:E26) -> 152,794.12000 | F22: =SUM(F23:F26) -> 165,854.30576 | G22: =SUM(G27+G26+G23) -> 106,730.39984 | H22: =SUM(H27+H26+H23) -> 94,174.44440 | I22: =SUM(I27+I26+I23) -> 85,194.08253 | J22: =SUM(J27+J26+J23) -> 65,498.60000 | K22: =SUM(K27+K26+K23) -> 65,879.30000 | L22: Х
A23: 12 | B23: местный бюджет, в т.ч.: | C23: =SUM(D23:K23) -> 602,260.56480 | D23: =D50+D177+D212+D241+D298+D367+D396+D263+D349 -> 48,065.00000 | E23: =E50+E177+E212+E241+E298+E367+E396+E263+E349 -> 76,223.96000 | F23: =F50+F177+F212+F241+F298+F367+F396+F263+F349 -> 82,439.60288 | G23: =SUM(G24:G25) -> 88,914.37499 | H23: =H50+H177+H212+H241+H298+H367+H396+H263+H349 -> 92,906.14440 | I23: =I50+I177+I212+I241+I298+I367+I396+I263+I349 -> 84,235.38253 | J23: =J50+J177+J212+J241+J298+J367+J396+J263+J349 -> 64,544.20000 | K23: =K50+K177+K212+K241+K298+K367+K396+K263+K349 -> 64,931.90000
A24: 13 | B24: - местный бюджет | C24: =SUM(C50+C177+C212+C241+C263+C298+C349+C367+C396+C433) -> 602,065.29920 | D24: 48,065.00000 | E24: 76,223.96000 | F24: 82,439.60288 | G24: 88,719.10939 | H24: 92,906.14440 | I24: 84,235.38253 | J24: 64,544.20000 | K24: 64,931.90000
A25: 14 | B25: - средства заинтересованных лиц | C25: =SUM(D25:K25) -> 195.26560 | D25: =SUM(D434) -> 0.00000 | E25: 0.00000 | F25: 0.00000 | G25: 195.26560 | H25: 0.00000 | I25: 0.00000 | J25: 0.00000 | K25: 0.00000
A26: 15 | B26: областной бюджет | C26: =SUM(D26:K26) -> 10,634.23485 | D26: =SUM(D178+D395+D51+D264+D435) -> 3,000.00000 | E26: 346.20000 | F26: 975.10000 | G26: 2,184.13485 | H26: 1,268.30000 | I26: 958.70000 | J26: 954.40000 | K26: 947.40000
A27: 16 | B27: федеральный бюджет | C27: =SUM(D27:K27) -> 15,631.89000 | D27: 0.00000 | E27: =E178 -> 0.00000 | F27: =F178 -> 0.00000 | G27: =SUM(G436) -> 15,631.89000 | H27: =SUM(H436) -> 0.00000 | I27: =SUM(I436) -> 0.00000 | J27: =SUM(J436) -> 0.00000 | K27: =SUM(K436) -> 0.00000
A28: 17 | B28: Подпрограмма 1: Комплексное благоустройство территории Североуральского городского округа
A29: 18 | B29: Всего по подпрограмме 1, | C29: =SUM(C31+C32) -> 269,566.09775 | D29: =SUM(D31:D32) -> 25,725.20000 | E29: 29,762.20000 | F29: 47,222.84145 | G29: 35,527.97723 | H29: 38,623.97458 | I29: 32,639.10449 | J29: 30,035.90000 | K29: =SUM(K31:K32) -> 30,028.90000 | L29: Х
A30: 19 | B30: в том числе:
A31: 20 | B31: местный бюджет | C31: =SUM(D31:K31) -> 258,996.09775 | D31: =SUM(D35+D50) -> 24,510.50000 | E31: 26,102.30000 | F31: 46,247.74145 | G31: =SUM(G35+G50) -> 34,564.47723 | H31: 37,669.67458 | I31: 31,696.40449 | J31: 29,102.50000 | K31: 29,102.50000
A32: 21 | B32: областной бюджет | C32: =SUM(D32:K32) -> 10,570.00000 | D32: 1,214.70000 | E32: 3,659.90000 | F32: 975.10000 | G32: 963.50000 | H32: 954.30000 | I32: 942.70000 | J32: 933.40000 | K32: 926.40000
A33: 22 | B33: 1. Капитальные вложения
A34: 23 | B34: Всего по направлению «Капитальные вложения» всего, в том числе | C34: =SUM(D34:K34) -> 15,605.10000 | D34: =SUM(D35+D36) -> 3,536.40000 | E34: =SUM(E35+E36) -> 3,674.70000 | F34: =SUM(F35) -> 4,819.00000 | G34: 3,575.00000 | H34: 0.00000 | I34: 0.00000 | J34: 0.00000 | K34: 0.00000 | L34: Х
A35: 24 | B35: местный бюджет | C35: =SUM(D35:K35) -> 11,076.70000 | D35: =SUM(D46) -> 2,321.70000 | E35: =SUM(E46) -> 361.00000 | F35: =SUM(F46) -> 4,819.00000 | G35: =SUM(G39+G42) -> 3,575.00000 | H35: 0.00000 | I35: 0.00000 | J35: 0.00000 | K35: =SUM(K46) -> 0.00000
A36: 25 | B36: областной бюджет | C36: =SUM(D36:K36) -> 4,528.40000 | D36: =SUM(D43) -> 1,214.70000 | E36: =SUM(E43) -> 3,313.70000 | F36: 0.00000 | G36: =SUM(G43) -> 0.00000 | H36: 0.00000 | I36: 0.00000 | J36: 0.00000 | K36: =SUM(K43) -> 0.00000
A37: 26 | B37: 1.1. Бюджетные инвестиции в объекты капитального строительства
A38: 27 | B38: Бюджетные инвестиции в объекты капитального строительства всего, в том числе | C38: 0.00000 | D38: 0.00000 | E38: 0.00000 | F38: 0.00000 | G38: 0.00000 | H38: 0.00000 | I38: 0.00000 | J38: 0.00000 | K38: 0.00000 | L38: Х
A39: 28 | B39: местный бюджет | C39: 0.00000 | D39: 0.00000 | E39: 0.00000 | F39: 0.00000 | G39: 0.00000 | H39: 0.00000 | I39: 0.00000 | J39: 0.00000 | K39: 0.00000
A40: 29 | B40: 1.2. Иные капитальные вложения
A41: 30 | B41: Всего | C41: =SUM(D41:K41) -> 15,605.10000 | D41: =SUM(D42:D43) -> 3,536.40000 | E41: =SUM(E42:E43) -> 3,674.70000 | F41: 4,819.00000 | G41: 3,575.00000 | H41: 0.00000 | I41: 0.00000 | J41: 0.00000 | K41: =SUM(K42:K43) -> 0.00000 | L41: Х
A42: 31 | B42: местный бюджет | C42: =SUM(D42:K42) -> 11,076.70000 | D42: =SUM(D46) -> 2,321.70000 | E42: 361.00000 | F42: 4,819.00000 | G42: 3,575.00000 | H42: 0.00000 | I42: 0.00000 | J42: 0.00000 | K42: 0.00000
A43: 32 | B43: областной бюджет | C43: =SUM(D43:K43) -> 4,528.40000 | D43: =SUM(D47) -> 1,214.70000 | E43: =SUM(E47) -> 3,313.70000 | F43: 0.00000 | G43: =SUM(G47) -> 0.00000 | H43: 0.00000 | I43: 0.00000 | J43: 0.00000 | K43: =SUM(K47) -> 0.00000
A44: 33 | B44: Мероприятие 1 Благоустройство дворовых территорий Североуральского городского округа
A45: 34 | B45: Всего, из них | C45: =SUM(D45:K45) -> 15,605.10000 | D45: =D46+D47 -> 3,536.40000 | E45: =SUM(E46:E47) -> 3,674.70000 | F45: =SUM(F46) -> 4,819.00000 | G45: 3,575.00000 | H45: 0.00000 | I45: 0.00000 | J45: 0.00000 | K45: 0.00000 | L45: стр. 4
A46: 35 | B46: местный бюджет | C46: =SUM(D46:K46) -> 11,076.70000 | D46: 2,321.70000 | E46: 361.00000 | F46: 4,819.00000 | G46: 3,575.00000 | H46: 0.00000 | I46: 0.00000 | J46: 0.00000 | K46: 0.00000
A47: 36 | B47: областной бюджет | C47: =SUM(D47:K47) -> 4,528.40000 | D47: 1,214.70000 | E47: 3,313.70000 | F47: 0.00000 | G47: 0.00000 | H47: 0.00000 | I47: 0.00000 | J47: 0.00000 | K47: 0.00000
A48: 37 | B48: 3. Прочие нужды
A49: 38 | B49: Всего по направлению «Прочие нужды», всего, в том числе: | C49: =SUM(D49:K49) -> 253,960.99775 | D49: =SUM(D50:D51) -> 22,188.80000 | E49: 26,087.50000 | F49: 42,403.84145 | G49: 31,952.97723 | H49: 38,623.97458 | I49: 32,639.10449 | J49: 30,035.90000 | K49: 30,028.90000 | L49: Х
A50: 39 | B50: местный бюджет | C50: =SUM(D50:K50) -> 247,919.39775 | D50: =SUM(D61+D70+D73+D76+D54+D123) -> 22,188.80000 | E50: 25,741.30000 | F50: 41,428.74145 | G50: 30,989.47723 | H50: 37,669.67458 | I50: 31,696.40449 | J50: 29,102.50000 | K50: 29,102.50000
A51: 40 | B51: областной бюджет | C51: =SUM(D51:K51) -> 6,041.60000 | D51: =SUM(D77) -> 0.00000 | E51: =SUM(E77) -> 346.20000 | F51: =SUM(F124) -> 975.10000 | G51: 963.50000 | H51: 954.30000 | I51: 942.70000 | J51: 933.40000 | K51: 926.40000
A52: 41 | B52: Мероприятие 1 Благоустройство дворовых территорий Североуральского городского округа
A53: 42 | B53: Всего, из них | C53: =SUM(D53:K53) -> 7,134.74500 | D53: =D54+D55 -> 310.90000 | E53: =SUM(E54) -> 436.00000 | F53: 2,681.00000 | G53: 500.00000 | H53: 1,206.84500 | I53: 1,000.00000 | J53: 500.00000 | K53: 500.00000 | L53: стр. 4
A54: 43 | B54: местный бюджет | C54: =SUM(D54:K54) -> 7,134.74500 | D54: 310.90000 | E54: 436.00000 | F54: 2,681.00000 | G54: 500.00000 | H54: 1,206.84500 | I54: 1,000.00000 | J54: 500.00000 | K54: 500.00000
A55: 44 | B55: областной бюджет | C55: =SUM(D55:K55) -> 0.00000 | D55: 0.00000 | E55: 0.00000 | F55: 0.00000 | G55: 0.00000 | H55: 0.00000 | I55: 0.00000 | J55: 0.00000 | K55: 0.00000
A56: 45 | B56: Мероприятие 2 Благоустройство парков и скверов в городе Североуральске
A57: 46 | B57: Всего, из них | C57: =SUM(D57:J57) -> 0.00000 | D57: =D58+D59 -> 0.00000 | E57: =SUM(E58) -> 0.00000 | F57: 0.00000 | G57: 0.00000 | H57: 0.00000 | I57: 0.00000 | J57: 0.00000 | K57: 0.00000 | L57: Х
A58: 47 | B58: местный бюджет | C58: =SUM(D58:J58) -> 0.00000 | D58: 0.00000 | E58: 0.00000 | F58: 0.00000 | G58: 0.00000 | H58: =SUM(G58) -> 0.00000 | I58: =SUM(H58) -> 0.00000 | J58: =SUM(I58) -> 0.00000 | K58: =SUM(J58) -> 0.00000
A59: 48 | B59: Мероприятие 3- Уличное освещение
A60: 49 | B60: Всего, в том числе: | C60: =SUM(D60:K60) -> 129,510.53280 | D60: =SUM(D61) -> 12,001.00000 | E60: 12,600.00000 | F60: 18,150.69080 | G60: 15,955.00000 | H60: 21,456.00400 | I60: 17,347.83800 | J60: =SUM(J61) -> 16,000.00000 | K60: =SUM(K61) -> 16,000.00000 | L60: стр.8. с 2017 года стр. 9
A61: 50 | B61: местный бюджет | C61: =SUM(D61:K61) -> 129,510.53280 | D61: =SUM(D64+D67) -> 12,001.00000 | E61: 12,600.00000 | F61: 18,150.69080 | G61: 15,955.00000 | H61: 21,456.00400 | I61: 17,347.83800 | J61: 16,000.00000 | K61: 16,000.00000
A62: 51 | B62: - Обеспечение бесперебойной подачи электроэнергии
A63: 52 | B63: Всего: | C63: =SUM(D63:K63) -> 95,203.08840 | D63: =SUM(D64) -> 8,644.10000 | E63: =SUM(E64) -> 8,800.00000 | F63: 10,660.69080 | G63: 13,098.29760 | H63: 15,000.00000 | I63: 13,000.00000 | J63: 13,000.00000 | K63: 13,000.00000 | L63: стр.8. с 2017 года стр. 9
A64: 53 | B64: местный бюджет | C64: =SUM(D64:K64) -> 95,203.08840 | D64: 8,644.10000 | E64: 8,800.00000 | F64: 10,660.69080 | G64: 13,098.29760 | H64: 15,000.00000 | I64: 13,000.00000 | J64: 13,000.00000 | K64: 13,000.00000
A65: 54 | B65: - Содержание, ремонт и модернизация сетей уличного освещения
A66: 55 | B66: Всего: | C66: =SUM(D66:K66) -> 34,307.44440 | D66: =SUM(D67) -> 3,356.90000 | E66: =SUM(E67) -> 3,800.00000 | F66: 7,490.00000 | G66: 2,856.70240 | H66: 6,456.00400 | I66: 4,347.83800 | J66: 3,000.00000 | K66: 3,000.00000 | L66: стр.8. с 2017 года стр. 9
A67: 56 | B67: местный бюджет | C67: =SUM(D67:K67) -> 34,307.44440 | D67: 3,356.90000 | E67: 3,800.00000 | F67: 7,490.00000 | G67: 2,856.70240 | H67: 6,456.00400 | I67: 4,347.83800 | J67: 3,000.00000 | K67: 3,000.00000
A68: 57 | B68: Мероприятие 4 - Озеленение
A69: 58 | B69: Всего, из них | C69: =SUM(D69:K69) -> 26,594.41610 | D69: =SUM(D70) -> 2,890.90000 | E69: 2,148.00000 | F69: 3,923.84386 | G69: 3,352.35509 | H69: 3,175.75066 | I69: 4,498.56649 | J69: 3,302.50000 | K69: 3,302.50000 | L69: стр.11
A70: 59 | B70: местный бюджет | C70: =SUM(D70:K70) -> 26,594.41610 | D70: 2,890.90000 | E70: 2,148.00000 | F70: 3,923.84386 | G70: 3,352.35509 | H70: 3,175.75066 | I70: 4,498.56649 | J70: 3,302.50000 | K70: 3,302.50000
A71: 60 | B71: Мероприятие 5 - Организация и содержание мест захоронения
A72: 61 | B72: Всего, из них | C72: =SUM(D72:K72) -> 23,332.76851 | D72: =SUM(D73) -> 2,263.10000 | E72: 2,306.90000 | F72: 3,619.44212 | G72: 2,961.65639 | H72: 3,181.67000 | I72: 3,000.00000 | J72: 3,000.00000 | K72: 3,000.00000 | L72: стр.16
A73: 62 | B73: местный бюджет | C73: =SUM(D73:K73) -> 23,332.76851 | D73: 2,263.10000 | E73: 2,306.90000 | F73: 3,619.44212 | G73: 2,961.65639 | H73: 3,181.67000 | I73: 3,000.00000 | J73: =SUM(I73) -> 3,000.00000 | K73: =SUM(J73) -> 3,000.00000
A74: 63 | B74: Мероприятие 6 - Прочие мероприятия по благоустройству Североуральского городского округа
A75: 64 | B75: Всего, в том числе: | C75: =SUM(D75:K75) -> 60,170.68534 | D75: =SUM(D76:D77) -> 4,722.90000 | E75: =SUM(E76:E77) -> 8,596.60000 | F75: 12,256.96467 | G75: 8,014.41575 | H75: 8,129.80492 | I75: 5,850.00000 | J75: 6,300.00000 | K75: 6,300.00000 | L75: стр.5,5.1.,6,11,13,14,15,17
A76: 65 | B76: местный бюджет | C76: =SUM(D76:K76) -> 59,824.48534 | D76: =SUM(D80+D83+D90+D93+D99+D96+D102+D108+D105+D86+D111+D114) -> 4,722.90000 | E76: =SUM(E80+E83+E90+E93+E99+E96+E102+E108+E105+E86+E111+E114) -> 8,250.40000 | F76: =SUM(F80+F83+F90+F93+F99+F96+F102+F108+F105+F86+F111+F114) -> 12,256.96467 | G76: =SUM(G80+G83+G90+G93+G99+G96+G102+G108+G105+G86+G111+G114) -> 8,014.41575 | H76: =SUM(H80+H83+H90+H93+H99+H96+H102+H108+H105+H86+H111+H114+H117+H120) -> 8,129.80492 | I76: =SUM(I80+I83+I90+I93+I99+I96+I102+I108+I105+I86+I111+I114+I117+I120) -> 5,850.00000 | J76: =SUM(J80+J83+J90+J93+J99+J96+J102+J108+J105+J86+J111+J114+J117+J120) -> 6,300.00000 | K76: =SUM(K80+K83+K90+K93+K99+K96+K102+K108+K105+K86+K111+K114+K117+K120) -> 6,300.00000
A77: 66 | B77: областной бюджет | C77: =SUM(D77:K77) -> 346.20000 | D77: =SUM(D87) -> 0.00000 | E77: =SUM(E87) -> 346.20000 | F77: 0.00000 | G77: 0.00000 | H77: 0.00000 | I77: 0.00000 | J77: 0.00000 | K77: 0.00000
A78: =SUM(A77+1) -> 67 | B78: - Содержание памятников
A79: 68 | B79: Всего: | C79: =SUM(D79:K79) -> 3,624.85888 | D79: =SUM(D80) -> 369.20000 | E79: 404.90000 | F79: 384.30006 | G79: 466.45882 | H79: 500.00000 | I79: 500.00000 | J79: 500.00000 | K79: 500.00000 | L79: стр. 17
A80: 69 | B80: местный бюджет | C80: =SUM(D80:K80) -> 3,624.85888 | D80: 369.20000 | E80: 404.90000 | F80: 384.30006 | G80: 466.45882 | H80: 500.00000 | I80: 500.00000 | J80: 500.00000 | K80: 500.00000
A81: 70 | B81: - Уход за объектами благоустройства
A82: 71 | B82: Всего: | C82: =SUM(C83) -> 9,734.54965 | D82: =SUM(D83) -> 1,098.70000 | E82: =SUM(E83) -> 976.10000 | F82: 999.81380 | G82: 1,147.68593 | H82: 1,312.24992 | I82: 1,400.00000 | J82: 1,400.00000 | K82: 1,400.00000 | L82: стр. 5
A83: 72 | B83: местный бюджет | C83: =SUM(D83:K83) -> 9,734.54965 | D83: 1,098.70000 | E83: 976.10000 | F83: 999.81380 | G83: 1,147.68593 | H83: 1,312.24992 | I83: 1,400.00000 | J83: 1,400.00000 | K83: 1,400.00000
A84: 73 | B84: - Регулирование численности безнадзорных животных
A85: 74 | B85: Всего: | C85: =SUM(D85:J85) -> 1,677.20000 | D85: =SUM(D86:D87) -> 500.00000 | E85: =SUM(E86:E87) -> 1,177.20000 | F85: 0.00000 | G85: 0.00000 | H85: 0.00000 | I85: 0.00000 | J85: 0.00000 | K85: =SUM(K86:K87) -> 0.00000 | L85: стр. 13
A86: 75 | B86: местный бюджет | C86: =SUM(D86:J86) -> 1,331.00000 | D86: 500.00000 | E86: 831.00000 | F86: 0.00000 | G86: 0.00000 | H86: 0.00000 | I86: =SUM(H86) -> 0.00000 | J86: =SUM(I86) -> 0.00000 | K86: =SUM(J86) -> 0.00000
A87: 76 | B87: областной бюджет | C87: =SUM(D87:K87) -> 346.20000 | D87: 0.00000 | E87: 346.20000 | F87: 0.00000 | G87: 0.00000 | H87: 0.00000 | I87: 0.00000 | J87: 0.00000 | K87: 0.00000
A88: 77 | B88: - Содержание биоямы (скотомогильник)
A89: 78 | B89: Всего: | C89: =SUM(C90) -> 717.18218 | D89: =SUM(D90) -> 116.10000 | E89: =SUM(E90) -> 69.30000 | F89: 77.02912 | G89: 74.75306 | H89: 80.00000 | I89: 100.00000 | J89: 100.00000 | K89: 100.00000 | L89: стр.15
A90: 79 | B90: местный бюджет | C90: =SUM(D90:K90) -> 717.18218 | D90: 116.10000 | E90: 69.30000 | F90: 77.02912 | G90: 74.75306 | H90: 80.00000 | I90: 100.00000 | J90: 100.00000 | K90: 100.00000
A91: 80 | B91: - Обустройство и эксплуатация новогодних городков
A92: 81 | B92: Всего: | C92: =SUM(C93) -> 24,394.70000 | D92: =SUM(D93) -> 1,685.50000 | E92: =SUM(E93) -> 2,669.20000 | F92: 2,900.00000 | G92: 3,120.00000 | H92: 3,820.00000 | I92: 3,100.00000 | J92: 3,550.00000 | K92: 3,550.00000 | L92: стр.5
A93: 82 | B93: местный бюджет | C93: =SUM(D93:K93) -> 24,394.70000 | D93: 1,685.50000 | E93: 2,669.20000 | F93: 2,900.00000 | G93: 3,120.00000 | H93: 3,820.00000 | I93: 3,100.00000 | J93: 3,550.00000 | K93: 3,550.00000
A94: 83 | B94: - Приобретение декоративного освещения для улиц города Североуральска, ремонт светодиодных консолей
A95: 84 | B95: Всего: | C95: =SUM(C96) -> 4,692.40000 | D95: =SUM(D96) -> 773.40000 | E95: =SUM(E96) -> 1,701.00000 | F95: 0.00000 | G95: 560.00000 | H95: 158.00000 | I95: 500.00000 | J95: 500.00000 | K95: 500.00000 | L95: стр.5
A96: 85 | B96: местный бюджет | C96: =SUM(D96:K96) -> 4,692.40000 | D96: 773.40000 | E96: 1,701.00000 | F96: 0.00000 | G96: 560.00000 | H96: 158.00000 | I96: 500.00000 | J96: =SUM(I96) -> 500.00000 | K96: =SUM(J96) -> 500.00000
A97: 86 | B97: - Акарицидная обработка общественных мест
A98: 87 | B98: Всего: | C98: =SUM(C99) -> 882.28990 | D98: =SUM(D99) -> 92.00000 | E98: =SUM(E99) -> 99.90000 | F98: 99.98990 | G98: 45.00000 | H98: 95.40000 | I98: 150.00000 | J98: 150.00000 | K98: 150.00000 | L98: стр.14
A99: 88 | B99: местный бюджет | C99: =SUM(D99:K99) -> 882.28990 | D99: 92.00000 | E99: 99.90000 | F99: 99.98990 | G99: 45.00000 | H99: 95.40000 | I99: 150.00000 | J99: 150.00000 | K99: 150.00000
A100: 89 | B100: - Приобретение грунта плодородного (земли садовой)
A101: 90 | B101: Всего: | C101: =SUM(C102) -> 637.00000 | D101: =SUM(D102) -> 88.00000 | E101: =SUM(E102) -> 0.00000 | F101: 150.00000 | G101: 99.00000 | H101: 0.00000 | I101: 100.00000 | J101: 100.00000 | K101: 100.00000 | L101: стр.11
A102: 91 | B102: местный бюджет | C102: =SUM(D102:K102) -> 637.00000 | D102: 88.00000 | E102: 0.00000 | F102: 150.00000 | G102: 99.00000 | H102: 0.00000 | I102: 100.00000 | J102: 100.00000 | K102: 100.00000
A103: 92 | B103: - Приобретение и установка металлических урн и скамеек
A104: 93 | B104: Всего: | C104: =SUM(D104:K104) -> 1,710.25802 | D104: =SUM(D105) -> 0.00000 | E104: =SUM(E105) -> 0.00000 | F104: 1,710.25802 | G104: 0.00000 | H104: 0.00000 | I104: 0.00000 | J104: 0.00000 | K104: 0.00000 | L104: стр.6
A105: 94 | B105: местный бюджет | C105: =SUM(D105:K105) -> 1,710.25802 | D105: 0.00000 | E105: 0.00000 | F105: 1,710.25802 | G105: 0.00000 | H105: 0.00000 | I105: 0.00000 | J105: =SUM(I105) -> 0.00000 | K105: =SUM(J105) -> 0.00000
A106: 95 | B106: - Благоустройство мест общего пользования территории Североуральского городского округа
A107: 96 | B107: Всего: | C107: =SUM(D107:K107) -> 9,561.04171 | D107: =SUM(D108) -> 0.00000 | E107: =SUM(E108) -> 1,499.00000 | F107: 5,935.57377 | G107: 2,093.46794 | H107: 33.00000 | I107: 0.00000 | J107: 0.00000 | K107: 0.00000 | L107: стр.5
A108: 97 | B108: местный бюджет | C108: =SUM(D108:K108) -> 9,561.04171 | D108: 0.00000 | E108: 1,499.00000 | F108: 5,935.57377 | G108: 2,093.46794 | H108: 33.00000 | I108: 0.00000 | J108: =SUM(I108) -> 0.00000 | K108: =SUM(J108) -> 0.00000
A109: 98 | B109: - Обустройство источника нецентрализованного водоснабжения в п. Сосьва
A110: 99 | B110: Всего: | C110: =SUM(D110:K110) -> 58.05000 | D110: =SUM(D111) -> 0.00000 | E110: =SUM(E111) -> 0.00000 | F110: 0.00000 | G110: 58.05000 | H110: 0.00000 | I110: 0.00000 | J110: 0.00000 | K110: 0.00000 | L110: стр.5
A111: 100 | B111: местный бюджет | C111: =SUM(D111:K111) -> 58.05000 | D111: 0.00000 | E111: 0.00000 | F111: 0.00000 | G111: 58.05000 | H111: 0.00000 | I111: 0.00000 | J111: =SUM(I111) -> 0.00000 | K111: =SUM(J111) -> 0.00000
A112: 101 | B112: - Разработка проектно-сметной документации и проведение ценовой экспертизы скверов, парков и аллей Североуральского городского округа
A113: 102 | B113: Всего: | C113: =SUM(D113:K113) -> 733.15500 | D113: =SUM(D114) -> 0.00000 | E113: =SUM(E114) -> 0.00000 | F113: 0.00000 | G113: 350.00000 | H113: 383.15500 | I113: 0.00000 | J113: 0.00000 | K113: 0.00000 | L113: стр.5.1.
A114: 103 | B114: местный бюджет | C114: =SUM(D114:K114) -> 733.15500 | D114: 0.00000 | E114: 0.00000 | F114: 0.00000 | G114: 350.00000 | H114: 383.15500 | I114: 0.00000 | J114: =SUM(I114) -> 0.00000 | K114: =SUM(J114) -> 0.00000
A115: 104 | B115: - Приобретение и установка остановочных комплексов на территории Североуральского городского округа
A116: 105 | B116: Всего: | C116: =SUM(D116:K116) -> 1,500.00000 | D116: =SUM(D117) -> 0.00000 | E116: =SUM(E117) -> 0.00000 | F116: 0.00000 | G116: 0.00000 | H116: 1,500.00000 | I116: 0.00000 | J116: 0.00000 | K116: 0.00000 | L116: стр.5.2.
A117: 106 | B117: местный бюджет | C117: =SUM(D117:K117) -> 1,500.00000 | D117: 0.00000 | E117: 0.00000 | F117: 0.00000 | G117: 0.00000 | H117: 1,500.00000 | I117: 0.00000 | J117: =SUM(I117) -> 0.00000 | K117: =SUM(J117) -> 0.00000
A118: 107 | B118: - Изготовление и установка информационных стендов у здания Администрации Североуральского городского округа
A119: 108 | B119: Всего: | C119: =SUM(D119:K119) -> 248.00000 | D119: =SUM(D120) -> 0.00000 | E119: =SUM(E120) -> 0.00000 | F119: 0.00000 | G119: 0.00000 | H119: 248.00000 | I119: 0.00000 | J119: 0.00000 | K119: 0.00000 | L119: стр.5.3.
A120: 109 | B120: местный бюджет | C120: =SUM(D120:K120) -> 248.00000 | D120: 0.00000 | E120: 0.00000 | F120: 0.00000 | G120: 0.00000 | H120: 248.00000 | I120: 0.00000 | J120: =SUM(I120) -> 0.00000 | K120: =SUM(J120) -> 0.00000
A121: 110 | B121: Мероприятие 7 - Регулирование численности безнадзорных животных
A122: 111 | B122: Всего, из них | C122: =SUM(D122:K122) -> 7,217.85000 | D122: =SUM(D123:D124) -> 0.00000 | E122: =SUM(E123:E124) -> 0.00000 | F122: 1771.90000 | G122: 1169.55000 | H122: 1473.90000 | I122: 942.70000 | J122: 933.40000 | K122: 926.40000 | L122: стр.13
A123: 112 | B123: местный бюджет | C123: =SUM(D123:K123) -> 1,522.45000 | D123: 0.00000 | E123: 0.00000 | F123: 796.80000 | G123: 206.05000 | H123: 519.60000 | I123: 0.00000 | J123: 0.00000 | K123: 0.00000
A124: 113 | B124: областной бюджет | C124: =SUM(D124:K124) -> 5,695.40000 | D124: 0.00000 | E124: 0.00000 | F124: 975.10000 | G124: 963.50000 | H124: 954.30000 | I124: 942.70000 | J124: 933.40000 | K124: 926.40000
A125: 114 | B125: Подпрограмма 2: Муниципальная программа по энергосбережению и повышению энергетической эффективности объектов Североуральского городского округа
A126: 115 | B126: Всего по подпрограмме 2, в том числе | C126: =SUM(D126:K126) -> 112,649.25935 | D126: =SUM(D127:D128) -> 9,165.50000 | E126: 2,961.60000 | F126: 15,455.86781 | G126: 16,404.34197 | H126: 20,418.50000 | I126: 46,743.44957 | J126: 750.00000 | K126: 750.00000 | L126: Х
A127: 116 | B127: местный бюджет | C127: =SUM(D127:K127) -> 106,304.85935 | D127: =SUM(D131+D177) -> 2,821.10000 | E127: =SUM(E131+E177) -> 2,961.60000 | F127: =F131+F177 -> 15,455.86781 | G127: =SUM(G131+G177) -> 16,404.34197 | H127: 20,418.50000 | I127: =SUM(I131+I177) -> 46,743.44957 | J127: 750.00000 | K127: 750.00000
A128: 117 | B128: областной бюджет | C128: =SUM(D128:K128) -> 6,344.40000 | D128: =SUM(D132+D178) -> 6,344.40000 | E128: =SUM(E132+E178) -> 0.00000 | F128: =SUM(F132+F178) -> 0.00000 | G128: 0.00000 | H128: 0.00000 | I128: 0.00000 | J128: 0.00000 | K128: 0.00000
A129: 118 | B129: 1. Капитальные вложения
A130: 119 | B130: Всего по направлению «Капитальные вложения», всего, в том числе | C130: =SUM(D130:K130) -> 49,683.52270 | D130: =SUM(D131:D132) -> 4,173.60000 | E130: 1,420.00000 | F130: 14,122.60920 | G130: 2,804.34197 | H130: 0.00000 | I130: 27,162.97153 | J130: 0.00000 | K130: 0.00000 | L130: Х
A131: 120 | B131: местный бюджет | C131: =SUM(D131:K131) -> 46,339.12270 | D131: =SUM(D165+D135) -> 829.20000 | E131: 1,420.00000 | F131: 14,122.60920 | G131: 2,804.34197 | H131: 0.00000 | I131: =SUM(I165+I135) -> 27,162.97153 | J131: 0.00000 | K131: 0.00000
A132: 121 | B132: областной бюджет | C132: =SUM(D132:K132) -> 3,344.40000 | D132: 3,344.40000 | E132: 0.00000 | F132: 0.00000 | G132: 0.00000 | H132: 0.00000 | I132: 0.00000 | J132: 0.00000 | K132: 0.00000
A133: 122 | B133: 1.1. Бюджетные инвестиции в объекты капитального строительства
A134: 123 | B134: Бюджетные инвестиции в объекты капитального строительства всего, в том числе | C134: =SUM(D134:J134) -> 42,426.95117 | D134: =SUM(D135:D136) -> 0.00000 | E134: =SUM(E135:E136) -> 0.00000 | F134: 14,122.60920 | G134: 2,804.34197 | H134: 0.00000 | I134: 25,500.00000 | J134: 0.00000 | K134: 0.00000 | L134: Х
A135: 124 | B135: местный бюджет | C135: =SUM(D135:K135) -> 42,426.95117 | D135: =SUM(D139+D151+D154+D158+D161) -> 0.00000 | E135: 0.00000 | F135: 14,122.60920 | G135: 2,804.34197 | H135: 0.00000 | I135: =SUM(I139+I151+I154+I158+I161) -> 25,500.00000 | J135: 0.00000 | K135: 0.00000
A136: 125 | B136: областной бюджет | C136: =SUM(D136:J136) -> 0.00000 | D136: =SUM(D140+D155+D162) -> 0.00000 | E136: =SUM(E140+E155+E162) -> 0.00000 | F136: 0.00000 | G136: 0.00000 | H136: 0.00000 | I136: 0.00000 | J136: 0.00000 | K136: 0.00000
A137: 126 | B137: Мероприятие 3 - Закупка и установка осветительного оборудования с заменой неэффективного на энергосберегающее, в том числе замена ламп накаливания на энергосберегающие, строительство, модернизация сетей уличного освещения, проектно-сметные работы, экспертиза проектно-сметной документации
A138: 127 | B138: Всего, из них | C138: =SUM(D138:K138) -> 14,458.20066 | D138: =SUM(D139:D140) -> 0.00000 | E138: =SUM(E139:E140) -> 0.00000 | F138: 12,330.00000 | G138: 2,128.20066 | H138: 0.00000 | I138: 0.00000 | J138: 0.00000 | K138: 0.00000 | L138: стр.28
A139: 128 | B139: местный бюджет | C139: =SUM(D139:K139) -> 14,458.20066 | D139: 0.00000 | E139: 0.00000 | F139: =SUM(F147+F143) -> 12,330.00000 | G139: =SUM(G147+G143) -> 2,128.20066 | H139: 0.00000 | I139: =SUM(H139) -> 0.00000 | J139: 0.00000 | K139: 0.00000
A140: 129 | B140: областной бюджет | C140: =SUM(D140:J140) -> 0.00000 | D140: 0.00000 | E140: 0.00000 | F140: 0.00000 | G140: 0.00000 | H140: 0.00000 | I140: 0.00000 | J140: 0.00000 | K140: 0.00000
A141: 130 | B141: - Разработка ПСД на строительство сетей уличного освещения микрорайона Южный
A142: =SUM(A141+1) -> 131 | B142: Всего: | C142: =SUM(D142:K142) -> 283.20066 | D142: =SUM(D143) -> 0.00000 | E142: 0.00000 | F142: 283.20066 | G142: 0.00000 | H142: 0.00000 | I142: 0.00000 | J142: 0.00000 | K142: 0.00000 | L142: стр.28
A143: 132 | B143: местный бюджет | C143: =SUM(D143:K143) -> 283.20066 | D143: 0.00000 | E143: 0.00000 | F143: 283.20066 | G143: 0.00000 | H143: 0.00000 | I143: =SUM(H143) -> 0.00000 | J143: =SUM(I143) -> 0.00000 | K143: =SUM(J143) -> 0.00000
A144: 133 | B144: областной бюджет | C144: =SUM(D144:J144) -> 0.00000 | D144: 0.00000 | E144: 0.00000 | F144: 0.00000 | G144: 0.00000 | H144: 0.00000 | I144: 0.00000 | J144: 0.00000 | K144: 0.00000
A145: 134 | B145: - Строительство сетей уличного освещения микрорайона Южный
A146: 135 | B146: Всего: | C146: =SUM(D146:K146) -> 14,175.00000 | D146: =SUM(D147) -> 0.00000 | E146: 0.00000 | F146: 12,046.79934 | G146: 2,128.20066 | H146: 0.00000 | I146: 0.00000 | J146: 0.00000 | K146: 0.00000 | L146: стр.28
A147: 136 | B147: местный бюджет | C147: =SUM(D147:K147) -> 14,175.00000 | D147: 0.00000 | E147: 0.00000 | F147: 12,046.79934 | G147: 2,128.20066 | H147: 0.00000 | I147: =SUM(H147) -> 0.00000 | J147: =SUM(I147) -> 0.00000 | K147: =SUM(J147) -> 0.00000
A148: 137 | B148: областной бюджет | C148: =SUM(D148:J148) -> 0.00000 | D148: 0.00000 | E148: 0.00000 | F148: 0.00000 | G148: 0.00000 | H148: 0.00000 | I148: 0.00000 | J148: 0.00000 | K148: 0.00000
A149: 138 | B149: Мероприятие 5 - Разработка, экспертиза проектно-сметной документации на строительство сетей водоснабжения в Североуральском городском округе
A150: 139 | B150: Всего, из них | C150: =SUM(D150:K150) -> 20,000.00000 | D150: =SUM(D151) -> 0.00000 | E150: =SUM(E151) -> 0.00000 | F150: 0.00000 | G150: 0.00000 | H150: 0.00000 | I150: 20,000.00000 | J150: 0.00000 | K150: 0.00000 | L150: стр.31, введен с 2016 года
A151: 140 | B151: местный бюджет | C151: =SUM(D151:K151) -> 20,000.00000 | D151: 0.00000 | E151: 0.00000 | F151: 0.00000 | G151: 0.00000 | H151: =SUM(G151) -> 0.00000 | I151: 20,000.00000 | J151: 0.00000 | K151: 0.00000
A152: 141 | B152: Мероприятие 6 - Строительство сетей водоснабжения в Североуральском городском округе
A153: 142 | B153: Всего, из них | C153: =SUM(D153:K153) -> 0.00000 | D153: =SUM(D154:D155) -> 0.00000 | E153: =SUM(E154:E155) -> 0.00000 | F153: 0.00000 | G153: 0.00000 | H153: 0.00000 | I153: 0.00000 | J153: 0.00000 | K153: 0.00000 | L153: стр.32, введен с 2016 года
A154: 143 | B154: местный бюджет | C154: =SUM(D154:K154) -> 0.00000 | D154: 0.00000 | E154: 0.00000 | F154: 0.00000 | G154: 0.00000 | H154: =SUM(G154) -> 0.00000 | I154: 0.00000 | J154: 0.00000 | K154: 0.00000
A155: 144 | B155: областной бюджет | C155: =SUM(D155:J155) -> 0.00000 | D155: 0.00000 | E155: 0.00000 | F155: 0.00000 | G155: 0.00000 | H155: 0.00000 | I155: 0.00000 | J155: 0.00000 | K155: 0.00000
A156: 145 | B156: Мероприятие 7 - Разработка, экспертиза проектно-сметной документации на строительство котельных в Североуральском городском округе
A157: 146 | B157: Всего, из них | C157: =SUM(D157:K157) -> 7,968.75051 | D157: =SUM(D158) -> 0.00000 | E157: =SUM(E158) -> 0.00000 | F157: 1,792.60920 | G157: 676.14131 | H157: 0.00000 | I157: 5,500.00000 | J157: 0.00000 | K157: 0.00000 | L157: стр.33
A158: 147 | B158: местный бюджет | C158: =SUM(D158:K158) -> 7,968.75051 | D158: 0.00000 | E158: 0.00000 | F158: 1,792.60920 | G158: 676.14131 | H158: 0.00000 | I158: 5,500.00000 | J158: 0.00000 | K158: 0.00000
A159: 148 | B159: Мероприятие 8 - Строительство котельных в Североуральском городском округе
A160: 149 | B160: Всего, из них | C160: =SUM(D160:K160) -> 0.00000 | D160: =SUM(D161:D162) -> 0.00000 | E160: =SUM(E161:E162) -> 0.00000 | F160: 0.00000 | G160: 0.00000 | H160: 0.00000 | I160: 0.00000 | J160: 0.00000 | K160: 0.00000 | L160: стр.34, введен с 2016 года
A161: 150 | B161: местный бюджет | C161: =SUM(D161:K161) -> 0.00000 | D161: 0.00000 | E161: 0.00000 | F161: 0.00000 | G161: 0.00000 | H161: 0.00000 | I161: 0.00000 | J161: 0.00000 | K161: 0.00000
A162: 151 | B162: областной бюджет | C162: =SUM(D162:J162) -> 0.00000 | D162: 0.00000 | E162: 0.00000 | F162: 0.00000 | G162: 0.00000 | H162: =SUM(G162) -> 0.00000 | I162: =SUM(H162) -> 0.00000 | J162: =SUM(I162) -> 0.00000 | K162: =SUM(J162) -> 0.00000
A163: 152 | B163: 1.2. Иные капитальные вложения
A164: 153 | B164: Всего, в том числе | C164: =SUM(D164:K164) -> 7,256.57153 | D164: =SUM(D165:D166) -> 4,173.60000 | E164: 1,420.00000 | F164: 0.00000 | G164: 0.00000 | H164: 0.00000 | I164: 1,662.97153 | J164: 0.00000 | K164: 0.00000 | L164: Х
A165: 154 | B165: местный бюджет | C165: =SUM(D165:K165) -> 3,912.17153 | D165: =SUM(D173+D169) -> 829.20000 | E165: =SUM(E173) -> 1,420.00000 | F165: 0.00000 | G165: 0.00000 | H165: 0.00000 | I165: 1,662.97153 | J165: 0.00000 | K165: 0.00000
A166: 155 | B166: областной бюджет | C166: =SUM(D166:K166) -> 3,344.40000 | D166: =SUM(D174+D170) -> 3,344.40000 | E166: =SUM(E174) -> 0.00000 | F166: 0.00000 | G166: 0.00000 | H166: 0.00000 | I166: 0.00000 | J166: 0.00000 | K166: 0.00000
A167: 156 | B167: Мероприятие 1- Реконструкция, модернизация водопроводных сетей, сетей системы водоотведения с заменой (без замены) оборудования с более высоким КПД, установка регулируемого привода, реконструкция тепловых сетей, в том числе тепловых пунктов, котельных, капитальный ремонт систем коммунального хозяйства
A168: 157 | B168: Всего, в том числе: | C168: =SUM(D168:K168) -> 3,037.40000 | D168: =SUM(D169:D170) -> 3,037.40000 | E168: 0.00000 | F168: 0.00000 | G168: 0.00000 | H168: 0.00000 | I168: 0.00000 | J168: 0.00000 | K168: =SUM(K169:K170) -> 0.00000 | L168: стр.29
A169: 158 | B169: местный бюджет | C169: =SUM(D169:K169) -> 281.00000 | D169: 281.00000 | E169: 0.00000 | F169: 0.00000 | G169: 0.00000 | H169: 0.00000 | I169: 0.00000 | J169: 0.00000 | K169: 0.00000
A170: 159 | B170: областной бюджет | C170: =SUM(D170:K170) -> 2,756.40000 | D170: 2,756.40000 | E170: 0.00000 | F170: 0.00000 | G170: 0.00000 | H170: =SUM(G170) -> 0.00000 | I170: =SUM(H170) -> 0.00000 | J170: =SUM(I170) -> 0.00000 | K170: =SUM(J170) -> 0.00000
A171: 160 | B171: Мероприятие 3 - Закупка и установка осветительного оборудования с заменой неэффективного на энергосберегающее, в том числе замена ламп накаливания на энергосберегающие, строительство, модернизация сетей уличного освещения, проектно-сметные работы, экспертиза проектно-сметной документации
A172: 161 | B172: Всего, из них | C172: =SUM(C173:C174) -> 4,219.17153 | D172: =SUM(D173:D174) -> 1,136.20000 | E172: =SUM(E173:E174) -> 1,420.00000 | F172: 0.00000 | G172: 0.00000 | H172: 0.00000 | I172: 1,662.97153 | J172: 0.00000 | K172: =SUM(K173:K174) -> 0.00000 | L172: стр.28
A173: 162 | B173: местный бюджет | C173: =SUM(D173:K173) -> 3,631.17153 | D173: 548.20000 | E173: 1,420.00000 | F173: 0.00000 | G173: 0.00000 | H173: 0.00000 | I173: 1,662.97153 | J173: 0.00000 | K173: =SUM(J173) -> 0.00000
A174: 163 | B174: областной бюджет | C174: =SUM(D174:K174) -> 588.00000 | D174: 588.00000 | E174: 0.00000 | F174: 0.00000 | G174: 0.00000 | H174: =SUM(G174) -> 0.00000 | I174: =SUM(H174) -> 0.00000 | J174: =SUM(I174) -> 0.00000 | K174: =SUM(J174) -> 0.00000
A175: 164 | B175: 3. Прочие нужды
A176: 165 | B176: Всего по направлению «Прочие нужды», всего, в том числе: | C176: =SUM(C177:C178) -> 62,965.73665 | D176: =SUM(D177:D178) -> 4,991.90000 | E176: =SUM(E177:E178) -> 1,541.60000 | F176: 1,333.25861 | G176: 13,600.00000 | H176: 20,418.50000 | I176: 19,580.47804 | J176: 750.00000 | K176: 750.00000 | L176: Х
A177: 166 | B177: местный бюджет | C177: =SUM(D177:K177) -> 59,965.73665 | D177: =SUM(D185+D190+D194+D197+D181) -> 1,991.90000 | E177: 1,541.60000 | F177: 1,333.25861 | G177: 13,600.00000 | H177: 20,418.50000 | I177: 19,580.47804 | J177: 750.00000 | K177: 750.00000
A178: 167 | B178: областной бюджет | C178: =SUM(D178:K178) -> 3,000.00000 | D178: =SUM(D186+D191+D182) -> 3,000.00000 | E178: 0.00000 | F178: 0.00000 | G178: 0.00000 | H178: 0.00000 | I178: 0.00000 | J178: 0.00000 | K178: 0.00000
A179: 168 | B179: Мероприятие 1- Реконструкция, модернизация водопроводных сетей, сетей системы водоотведения с заменой (без замены) оборудования с более высоким КПД, установка регулируемого привода, реконструкция тепловых сетей, в том числе тепловых пунктов, котельных, капитальный ремонт систем коммунального хозяйства
A180: 169 | B180: Всего, в том числе: | C180: =SUM(D180:K180) -> 51,705.97804 | D180: =SUM(D181:D182) -> 0.00000 | E180: 0.00000 | F180: 0.00000 | G180: 13,000.00000 | H180: 19,775.50000 | I180: 18,930.47804 | J180: 0.00000 | K180: =SUM(K181:K182) -> 0.00000 | L180: стр.29
A181: 170 | B181: местный бюджет | C181: =SUM(D181:K181) -> 51,705.97804 | D181: 0.00000 | E181: 0.00000 | F181: 0.00000 | G181: 13,000.00000 | H181: 19,775.50000 | I181: 18,930.47804 | J181: 0.00000 | K181: 0.00000
A182: 171 | B182: областной бюджет | C182: =SUM(D182:J182) -> 0.00000 | D182: 0.00000 | E182: 0.00000 | F182: 0.00000 | G182: 0.00000 | H182: =SUM(G182) -> 0.00000 | I182: =SUM(H182) -> 0.00000 | J182: =SUM(I182) -> 0.00000 | K182: =SUM(J182) -> 0.00000
A183: 172 | B183: Мероприятие 2 - Оснащение зданий (строений, сооружений), находящихся в муниципальной собственности, многоквартирных жилых домов, жилых помещений, квартир приборами учета используемых энергетических ресурсов, в том числе разработка проектно-сметной документации
A184: 173 | B184: Всего, из них | C184: =SUM(C185:C187) -> 8,777.55861 | D184: =SUM(D185:D186) -> 4,200.00000 | E184: 1,100.00000 | F184: 1,250.40861 | G184: 427.15000 | H184: 400.00000 | I184: 400.00000 | J184: 500.00000 | K184: 500.00000 | L184: стр.22,23,24,25,26
A185: 174 | B185: местный бюджет | C185: =SUM(D185:K185) -> 5,777.55861 | D185: 1,200.00000 | E185: 1,100.00000 | F185: 1,250.40861 | G185: 427.15000 | H185: 400.00000 | I185: 400.00000 | J185: 500.00000 | K185: 500.00000
A186: 175 | B186: областной бюджет | C186: =SUM(D186:K186) -> 3,000.00000 | D186: 3,000.00000 | E186: =SUM(E187) -> 0.00000 | F186: 0.00000 | G186: 0.00000 | H186: 0.00000 | I186: 0.00000 | J186: 0.00000 | K186: 0.00000
A187: 176 | B187: федеральный бюджет | C187: =SUM(D187:J187) -> 0.00000 | D187: 0.00000 | E187: 0.00000 | F187: 0.00000 | G187: =SUM(F187) -> 0.00000 | H187: =SUM(G187) -> 0.00000 | I187: =SUM(H187) -> 0.00000 | J187: =SUM(I187) -> 0.00000 | K187: =SUM(J187) -> 0.00000
A188: 177 | B188: Мероприятие 3 - Закупка и установка осветительного оборудования с заменой неэффективного на энергосберегающее, в том числе замена ламп накаливания на энергосберегающие, строительство, модернизация сетей уличного освещения, проектно-сметные работы, экспертиза проектно-сметной документации
A189: 178 | B189: Всего, из них | C189: =SUM(D189:K189) -> 591.90000 | D189: =SUM(D190:D191) -> 411.90000 | E189: =SUM(E190:E191) -> 180.00000 | F189: 0.00000 | G189: 0.00000 | H189: 0.00000 | I189: 0.00000 | J189: 0.00000 | K189: =SUM(K190:K191) -> 0.00000 | L189: стр.28
A190: 179 | B190: местный бюджет | C190: =SUM(D190:K190) -> 591.90000 | D190: 411.90000 | E190: 180.00000 | F190: 0.00000 | G190: 0.00000 | H190: 0.00000 | I190: 0.00000 | J190: 0.00000 | K190: 0.00000
A191: 180 | B191: областной бюджет | C191: =SUM(D191:J191) -> 0.00000 | D191: 0.00000 | E191: 0.00000 | F191: 0.00000 | G191: 0.00000 | H191: =SUM(G191) -> 0.00000 | I191: =SUM(H191) -> 0.00000 | J191: =SUM(I191) -> 0.00000 | K191: =SUM(J191) -> 0.00000
A192: 181 | B192: Мероприятие 4- Разработка схемы водоснабжения Североуральского городского округа
A193: 182 | B193: Всего, из них | C193: =SUM(D193:K193) -> 380.00000 | D193: =SUM(D194) -> 380.00000 | E193: =SUM(E194) -> 0.00000 | F193: 0.00000 | G193: 0.00000 | H193: 0.00000 | I193: 0.00000 | J193: 0.00000 | K193: 0.00000 | L193: стр.30
A194: 183 | B194: местный бюджет | C194: =SUM(D194:K194) -> 380.00000 | D194: 380.00000 | E194: 0.00000 | F194: 0.00000 | G194: =SUM(F194) -> 0.00000 | H194: =SUM(G194) -> 0.00000 | I194: =SUM(H194) -> 0.00000 | J194: =SUM(I194) -> 0.00000 | K194: =SUM(J194) -> 0.00000
A195: 184 | B195: Мероприятие 9- Прочие мероприятия в области энергосбережения (разработка технических заданий, топливно-энерготехнического баланса и т.п.)
A196: 185 | B196: Всего, из них | C196: =SUM(D196:K196) -> 1,510.30000 | D196: =SUM(D197) -> 0.00000 | E196: =SUM(E197) -> 261.60000 | F196: 82.85000 | G196: 172.85000 | H196: 243.00000 | I196: 250.00000 | J196: 250.00000 | K196: 250.00000 | L196: стр.35, с 2016 года стр. 36
A197: 186 | B197: местный бюджет | C197: =SUM(D197:K197) -> 1,510.30000 | D197: 0.00000 | E197: 261.60000 | F197: 82.85000 | G197: 172.85000 | H197: 243.00000 | I197: 250.00000 | J197: =SUM(I197) -> 250.00000 | K197: =SUM(J197) -> 250.00000
A198: 187 | B198: Подпрограмма 3: Развитие лесного хозяйства на территории Североуральского городского округа
A199: 188 | B199: Всего по подпрограмме 1, всего, в том числе | C199: =SUM(C200:C200) -> 3,040.19000 | D199: =SUM(D200) -> 774.10000 | E199: =SUM(E200) -> 881.10000 | F199: 0.00000 | G199: 0.00000 | H199: 184.99000 | I199: 200.00000 | J199: 500.00000 | K199: 500.00000 | L199: Х
A200: 189 | B200: местный бюджет | C200: =SUM(D200:K200) -> 3,040.19000 | D200: =SUM(D212) -> 774.10000 | E200: =SUM(E212) -> 881.10000 | F200: 0.00000 | G200: 0.00000 | H200: 184.99000 | I200: 200.00000 | J200: 500.00000 | K200: 500.00000
A201: 190 | B201: 1. Капитальные вложения
A202: =SUM(A201+1) -> 191 | B202: Всего по направлению «Капитальные вложения», всего, в том числе | C202: 0.00000 | D202: 0.00000 | E202: 0.00000 | F202: 0.00000 | G202: 0.00000 | H202: 0.00000 | I202: 0.00000 | J202: 0.00000 | K202: 0.00000 | L202: Х
... 268 more rows

Sheet Лист2

Sheet Лист3
